[Event "Betsys MČR v online bleskovém šachu 2021"]
[Site "Chess.com"]
[Date "2021.04.17"]
[Round "6"]
[White "Ladislav1969"]
[Black "Dan1612"]
[Result "1-0"]
[WhiteElo "2313"]
[BlackElo "1977"]
[TimeControl "180+1"]
[EndTime "9:55:57 PDT"]
[Termination "Uživatel Ladislav1969 zvítězil po vzdání soupeře"]

1. e4 {[%clk 0:03:00.9]} 1... c5 {[%clk 0:02:57.1]} 2. d4 {[%clk 0:03:00.9]}
2... cxd4 {[%clk 0:02:56.7]} 3. c3 {[%clk 0:03:01.6]} 3... d3 {[%clk 0:02:57.3]}
4. Bxd3 {[%clk 0:03:00.9]} 4... d6 {[%clk 0:02:57.9]} 5. c4 {[%clk 0:03:01.1]}
5... Nf6 {[%clk 0:02:58.2]} 6. Nc3 {[%clk 0:02:59.9]} 6... e5 {[%clk 0:02:58.8]}
7. Nge2 {[%clk 0:02:54.7]} 7... Bg4 {[%clk 0:02:56.3]} 8. f3 {[%clk 0:02:53.7]}
8... Be6 {[%clk 0:02:53.9]} 9. Be3 {[%clk 0:02:53.6]} 9... Be7 {[%clk
0:02:53.7]} 10. Nd5 {[%clk 0:02:53.5]} 10... Nxd5 {[%clk 0:02:52]} 11. cxd5
{[%clk 0:02:52.3]} 11... Bd7 {[%clk 0:02:52.6]} 12. O-O {[%clk 0:02:50.9]} 12...
O-O {[%clk 0:02:52.1]} 13. Rc1 {[%clk 0:02:48.8]} 13... Na6 {[%clk 0:02:51]} 14.
a3 {[%clk 0:02:33.5]} 14... Nc5 {[%clk 0:02:47.6]} 15. Bc2 {[%clk 0:02:32]}
15... Rc8 {[%clk 0:02:44]} 16. b4 {[%clk 0:02:31.1]} 16... Na6 {[%clk
0:02:40.8]} 17. Bd3 {[%clk 0:02:30.5]} 17... Bg5 {[%clk 0:02:20.9]} 18. Qd2
{[%clk 0:02:27.9]} 18... Bxe3+ {[%clk 0:02:19.8]} 19. Qxe3 {[%clk 0:02:28.1]}
19... Qb6 {[%clk 0:02:13.6]} 20. Kf2 {[%clk 0:02:20]} 20... Qxe3+ {[%clk
0:02:10.8]} 21. Kxe3 {[%clk 0:02:20.1]} 21... Nc7 {[%clk 0:01:55]} 22. Rc3
{[%clk 0:02:00.8]} 22... Bb5 {[%clk 0:01:53.8]} 23. Rfc1 {[%clk 0:01:55.4]}
23... Bxd3 {[%clk 0:01:30.8]} 24. Kxd3 {[%clk 0:01:53.2]} 24... f5 {[%clk
0:01:14.6]} 25. Rxc7 {[%clk 0:01:50.6]} 25... fxe4+ {[%clk 0:01:15.5]} 26. fxe4
{[%clk 0:01:49.5]} 26... Rxc7 {[%clk 0:01:04.1]} 27. Rxc7 {[%clk 0:01:49.3]}
27... Rf2 {[%clk 0:01:05]} 28. Rxb7 {[%clk 0:01:49]} 28... Rxg2 {[%clk
0:01:04.7]} 29. Rxa7 {[%clk 0:01:43.9]} 29... Rxh2 {[%clk 0:01:04.9]} 30. b5
{[%clk 0:01:43.7]} 30... Rh3+ {[%clk 0:01:05]} 31. Kc2 {[%clk 0:01:41.5]} 31...
Re3 {[%clk 0:01:03.3]} 32. Nc3 {[%clk 0:01:38.2]} 32... Rf3 {[%clk 0:00:39.1]}
33. b6 {[%clk 0:01:38.2]} 33... Rf8 {[%clk 0:00:37.6]} 34. b7 {[%clk 0:01:37.5]}
34... h5 {[%clk 0:00:37.8]} 35. Ra8 {[%clk 0:01:36.7]} 35... h4 {[%clk
0:00:33.7]} 36. Rxf8+ {[%clk 0:01:36.2]} 36... Kxf8 {[%clk 0:00:34.6]} 37. b8=Q+
{[%clk 0:01:36.7]} 37... Kf7 {[%clk 0:00:35.5]} 38. Qxd6 {[%clk 0:01:36.3]}
38... h3 {[%clk 0:00:35.3]} 39. Qxe5 {[%clk 0:01:36.5]} 39... h2 {[%clk
0:00:36.2]} 40. Qxh2 {[%clk 0:01:35.8]} 40... g5 {[%clk 0:00:37.1]} 41. d6
{[%clk 0:01:35.1]} 41... g4 {[%clk 0:00:38]} 42. Nd5 {[%clk 0:01:34.8]} 42... g3
{[%clk 0:00:38.9]} 43. Qh7+ {[%clk 0:01:33.1]} 1-0

[Event "Betsys MČR v online bleskovém šachu 2021"]
[Site "Chess.com"]
[Date "2021.04.17"]
[Round "6"]
[White "xnepom"]
[Black "MametevArtem097"]
[Result "1-0"]
[WhiteElo "2252"]
[BlackElo "1997"]
[TimeControl "180+1"]
[EndTime "9:55:59 PDT"]
[Termination "Uživatel xnepom zvítězil matem"]

1. e4 {[%clk 0:02:48.9]} 1... e5 {[%clk 0:02:54.9]} 2. Nf3 {[%clk 0:02:48.5]}
2... Nc6 {[%clk 0:02:54.7]} 3. Bb5 {[%clk 0:02:49.1]} 3... a6 {[%clk 0:02:55]}
4. Ba4 {[%clk 0:02:49.3]} 4... Nf6 {[%clk 0:02:54.1]} 5. d4 {[%clk 0:02:49.9]}
5... exd4 {[%clk 0:02:50]} 6. O-O {[%clk 0:02:47.5]} 6... d6 {[%clk 0:02:41.4]}
7. Nxd4 {[%clk 0:02:46.7]} 7... Bd7 {[%clk 0:02:41.4]} 8. Nxc6 {[%clk
0:02:45.6]} 8... Bxc6 {[%clk 0:02:41.4]} 9. Bxc6+ {[%clk 0:02:45.2]} 9... bxc6
{[%clk 0:02:42.3]} 10. Nc3 {[%clk 0:02:45.5]} 10... Be7 {[%clk 0:02:42.4]} 11.
Bf4 {[%clk 0:02:44.7]} 11... O-O {[%clk 0:02:42.1]} 12. e5 {[%clk 0:02:44.3]}
12... dxe5 {[%clk 0:02:18.1]} 13. Qxd8 {[%clk 0:02:43.9]} 13... Raxd8 {[%clk
0:02:18.9]} 14. Bxe5 {[%clk 0:02:44.4]} 14... Bd6 {[%clk 0:02:13.8]} 15. Bxf6
{[%clk 0:02:43.6]} 15... gxf6 {[%clk 0:02:14.7]} 16. Rad1 {[%clk 0:02:40.8]}
16... Be5 {[%clk 0:02:11.7]} 17. Na4 {[%clk 0:02:32.5]} 17... Rd5 {[%clk
0:02:04.5]} 18. Rxd5 {[%clk 0:02:26.5]} 18... cxd5 {[%clk 0:02:05.4]} 19. Rd1
{[%clk 0:02:26.2]} 19... d4 {[%clk 0:01:59.7]} 20. Kf1 {[%clk 0:02:19.6]} 20...
Kg7 {[%clk 0:01:50.1]} 21. g3 {[%clk 0:02:14.1]} 21... Kg6 {[%clk 0:01:49.5]}
22. f4 {[%clk 0:02:11.3]} 22... Bd6 {[%clk 0:01:46.8]} 23. Rxd4 {[%clk
0:02:11.9]} 23... Rb8 {[%clk 0:01:43.6]} 24. Ke2 {[%clk 0:02:07]} 24... Rb4
{[%clk 0:01:41.9]} 25. Rxb4 {[%clk 0:02:06.3]} 25... Bxb4 {[%clk 0:01:42.8]} 26.
Kf3 {[%clk 0:02:03.3]} 26... Kf5 {[%clk 0:01:41.1]} 27. g4+ {[%clk 0:02:03.4]}
27... Ke6 {[%clk 0:01:41.2]} 28. c3 {[%clk 0:01:59.6]} 28... Bd6 {[%clk
0:01:37.8]} 29. b3 {[%clk 0:01:57.5]} 29... Ba3 {[%clk 0:01:32.2]} 30. c4 {[%clk
0:01:53.2]} 30... Kd6 {[%clk 0:01:20.5]} 31. Ke4 {[%clk 0:01:44.7]} 31... Bc1
{[%clk 0:01:09]} 32. Nc3 {[%clk 0:01:39.7]} 32... Kc5 {[%clk 0:01:05]} 33. Nd5
{[%clk 0:01:36.9]} 33... Bb2 {[%clk 0:00:58.6]} 34. Nxc7 {[%clk 0:01:35.4]}
34... Kb4 {[%clk 0:00:57.6]} 35. Nxa6+ {[%clk 0:01:34.7]} 35... Ka3 {[%clk
0:00:58.5]} 36. c5 {[%clk 0:01:33.7]} 36... Kxa2 {[%clk 0:00:58.1]} 37. c6
{[%clk 0:01:34.2]} 37... Kxb3 {[%clk 0:00:51]} 38. c7 {[%clk 0:01:34.5]} 38...
Ka4 {[%clk 0:00:51.9]} 39. c8=Q {[%clk 0:01:34.2]} 39... f5+ {[%clk 0:00:52.8]}
40. gxf5 {[%clk 0:01:33.6]} 40... h5 {[%clk 0:00:51.4]} 41. Qb7 {[%clk
0:01:31.4]} 41... Bc3 {[%clk 0:00:48.5]} 42. Nc5+ {[%clk 0:01:30.1]} 42... Ka5
{[%clk 0:00:46.1]} 43. Kd5 {[%clk 0:01:30.3]} 43... h4 {[%clk 0:00:45.7]} 44.
Kc4 {[%clk 0:01:30.4]} 44... Bb4 {[%clk 0:00:42.7]} 45. Qb5# {[%clk 0:01:29.5]}
1-0

[Event "Betsys MČR v online bleskovém šachu 2021"]
[Site "Chess.com"]
[Date "2021.04.17"]
[Round "6"]
[White "Koli05"]
[Black "Daffac"]
[Result "1-0"]
[WhiteElo "1857"]
[BlackElo "2083"]
[TimeControl "180+1"]
[EndTime "9:56:04 PDT"]
[Termination "Uživatel Koli05 zvítězil matem"]

1. d4 {[%clk 0:03:00.9]} 1... f5 {[%clk 0:02:59.2]} 2. e4 {[%clk 0:03:00.1]}
2... fxe4 {[%clk 0:03:00.1]} 3. Nc3 {[%clk 0:02:59.8]} 3... Nf6 {[%clk
0:03:00.7]} 4. Bg5 {[%clk 0:02:59.4]} 4... Nc6 {[%clk 0:02:56.9]} 5. d5 {[%clk
0:02:57.3]} 5... Ne5 {[%clk 0:02:56.4]} 6. Qe2 {[%clk 0:02:56.4]} 6... Nf7
{[%clk 0:02:48.9]} 7. Bxf6 {[%clk 0:02:55.4]} 7... exf6 {[%clk 0:02:49.8]} 8.
Nxe4 {[%clk 0:02:53.8]} 8... Bb4+ {[%clk 0:02:45.7]} 9. c3 {[%clk 0:02:50.7]}
9... Be7 {[%clk 0:02:41.7]} 10. d6 {[%clk 0:02:40.2]} 10... cxd6 {[%clk
0:02:19.4]} 11. O-O-O {[%clk 0:02:38.6]} 11... O-O {[%clk 0:02:18.1]} 12. Nf3
{[%clk 0:02:25.5]} 12... b6 {[%clk 0:02:13.9]} 13. Nd4 {[%clk 0:02:24.2]} 13...
Re8 {[%clk 0:02:10]} 14. Qd2 {[%clk 0:02:17.5]} 14... Bb7 {[%clk 0:02:07.8]} 15.
Bd3 {[%clk 0:02:15.5]} 15... Ne5 {[%clk 0:02:02.1]} 16. Bc2 {[%clk 0:02:14.2]}
16... Rc8 {[%clk 0:01:53.3]} 17. Nf5 {[%clk 0:02:12.9]} 17... d5 {[%clk
0:01:49.7]} 18. Ned6 {[%clk 0:02:06.7]} 18... Nc4 {[%clk 0:01:28.5]} 19. Qf4
{[%clk 0:02:04.1]} 19... Nxd6 {[%clk 0:01:13]} 20. Nxd6 {[%clk 0:02:02]} 20...
Bxd6 {[%clk 0:01:11.9]} 21. Qxd6 {[%clk 0:02:00.3]} 21... Qe7 {[%clk 0:01:08.9]}
22. Qf4 {[%clk 0:01:56.8]} 22... Qe5 {[%clk 0:01:07.2]} 23. Qh4 {[%clk
0:01:52.8]} 23... h6 {[%clk 0:00:59.4]} 24. f4 {[%clk 0:01:48.7]} 24... Qe3+
{[%clk 0:00:58.6]} 25. Kb1 {[%clk 0:01:46.4]} 25... d4 {[%clk 0:00:55.5]} 26.
Rxd4 {[%clk 0:01:38]} 26... Bxg2 {[%clk 0:00:53.4]} 27. Rhd1 {[%clk 0:01:36.2]}
27... Be4 {[%clk 0:00:50.4]} 28. Bxe4 {[%clk 0:01:23.4]} 28... Rxe4 {[%clk
0:00:50.6]} 29. Rxd7 {[%clk 0:01:22.2]} 29... Rxf4 {[%clk 0:00:40.9]} 30. Qh5
{[%clk 0:01:17.2]} 30... Qe4+ {[%clk 0:00:35.8]} 31. Ka1 {[%clk 0:01:16.7]}
31... Re8 {[%clk 0:00:32.2]} 32. Qf7+ {[%clk 0:01:15.2]} 32... Kh8 {[%clk
0:00:28.6]} 33. Qxg7# {[%clk 0:01:14.7]} 1-0

[Event "Betsys MČR v online bleskovém šachu 2021"]
[Site "Chess.com"]
[Date "2021.04.17"]
[Round "6"]
[White "Newyork6"]
[Black "Petulak08"]
[Result "0-1"]
[WhiteElo "333"]
[BlackElo "1218"]
[TimeControl "180+1"]
[EndTime "9:56:05 PDT"]
[Termination "Uživatel Petulak08 zvítězil po vzdání soupeře"]

1. Nf3 {[%clk 0:03:00.9]} 1... Nf6 {[%clk 0:02:58.4]} 2. g3 {[%clk 0:03:01.7]}
2... d5 {[%clk 0:02:58.3]} 3. Bg2 {[%clk 0:03:00.5]} 3... c6 {[%clk 0:02:58.5]}
4. O-O {[%clk 0:02:59.8]} 4... Nbd7 {[%clk 0:02:58.1]} 5. d3 {[%clk 0:02:56.9]}
5... e5 {[%clk 0:02:58.3]} 6. Nxe5 {[%clk 0:02:53.9]} 6... Nxe5 {[%clk
0:02:57.5]} 7. d4 {[%clk 0:02:51.6]} 7... Ng6 {[%clk 0:02:55.3]} 8. c3 {[%clk
0:02:46.8]} 8... c5 {[%clk 0:02:52.8]} 9. e3 {[%clk 0:02:42.9]} 9... b6 {[%clk
0:02:49.7]} 10. Na3 {[%clk 0:02:41.9]} 10... Bb7 {[%clk 0:02:49.5]} 11. Bd2
{[%clk 0:02:41.5]} 11... Be7 {[%clk 0:02:40.3]} 12. g4 {[%clk 0:02:36.6]} 12...
Qd7 {[%clk 0:02:35.4]} 13. g5 {[%clk 0:02:36.2]} 13... Ne4 {[%clk 0:02:33.4]}
14. Bxe4 {[%clk 0:02:26.9]} 14... dxe4 {[%clk 0:02:32.1]} 15. f3 {[%clk
0:02:21.2]} 15... exf3 {[%clk 0:02:15]} 16. Rxf3 {[%clk 0:02:18]} 16... Qg4+
{[%clk 0:02:13.5]} 17. Rg3 {[%clk 0:02:13.3]} 17... Qxd1+ {[%clk 0:02:07.9]} 18.
Rxd1 {[%clk 0:02:10.6]} 18... Be4 {[%clk 0:02:05.1]} 19. Rf1 {[%clk 0:02:06.7]}
19... O-O {[%clk 0:01:58.8]} 20. Rg4 {[%clk 0:02:04.3]} 20... Bd5 {[%clk
0:01:51.6]} 21. c4 {[%clk 0:01:53.1]} 21... Bc6 {[%clk 0:01:49.4]} 22. e4 {[%clk
0:01:41.6]} 22... Rfe8 {[%clk 0:01:47.2]} 23. dxc5 {[%clk 0:01:38.6]} 23...
Bxc5+ {[%clk 0:01:46.6]} 24. Kg2 {[%clk 0:01:32.1]} 24... Bxe4+ {[%clk
0:01:44.5]} 25. Kg3 {[%clk 0:01:17.6]} 25... Bd6+ {[%clk 0:01:38.4]} 26. Kh3
{[%clk 0:01:09.1]} 26... Bd3 {[%clk 0:01:20.6]} 27. Re1 {[%clk 0:01:09.9]} 27...
Rxe1 {[%clk 0:01:19.6]} 28. Rh4 {[%clk 0:00:58.1]} 28... Bf5+ {[%clk 0:01:15.8]}
29. Kg2 {[%clk 0:00:41.6]} 29... Re2+ {[%clk 0:01:15.4]} 30. Kf1 {[%clk
0:00:40]} 30... Rxd2 {[%clk 0:01:15.5]} 31. Rd4 {[%clk 0:00:22.9]} 31... Rxd4
{[%clk 0:01:14.3]} 0-1

[Event "Betsys MČR v online bleskovém šachu 2021"]
[Site "Chess.com"]
[Date "2021.04.17"]
[Round "6"]
[White "adiklan"]
[Black "Tah_na_g12"]
[Result "1-0"]
[WhiteElo "1909"]
[BlackElo "1178"]
[TimeControl "180+1"]
[EndTime "9:56:07 PDT"]
[Termination "Uživatel adiklan zvítězil matem"]

1. e4 {[%clk 0:03:00.9]} 1... e5 {[%clk 0:02:57.9]} 2. Bc4 {[%clk 0:02:59.1]}
2... Nf6 {[%clk 0:02:55.9]} 3. d4 {[%clk 0:02:54.4]} 3... exd4 {[%clk 0:02:54]}
4. Nf3 {[%clk 0:02:54.3]} 4... Nc6 {[%clk 0:02:52.1]} 5. O-O {[%clk 0:02:53.7]}
5... Bc5 {[%clk 0:02:47.9]} 6. e5 {[%clk 0:02:46.4]} 6... Ng4 {[%clk 0:02:37.8]}
7. Re1 {[%clk 0:02:35.8]} 7... O-O {[%clk 0:02:33.4]} 8. h3 {[%clk 0:02:34.9]}
8... Nh6 {[%clk 0:02:30.4]} 9. Bxh6 {[%clk 0:02:34.3]} 9... gxh6 {[%clk
0:02:29.5]} 10. Nbd2 {[%clk 0:02:30.2]} 10... d6 {[%clk 0:02:25.6]} 11. Nb3
{[%clk 0:02:27.5]} 11... Be6 {[%clk 0:02:18]} 12. Bxe6 {[%clk 0:02:11.1]} 12...
fxe6 {[%clk 0:02:18.9]} 13. Nfxd4 {[%clk 0:02:06.5]} 13... Bxd4 {[%clk
0:02:16.6]} 14. Nxd4 {[%clk 0:02:06.2]} 14... dxe5 {[%clk 0:02:16.4]} 15. Nxc6
{[%clk 0:02:06.5]} 15... Qxd1 {[%clk 0:02:14.6]} 16. Raxd1 {[%clk 0:02:07.4]}
16... bxc6 {[%clk 0:02:13.7]} 17. Rxe5 {[%clk 0:02:07.5]} 17... Rab8 {[%clk
0:02:10.9]} 18. b3 {[%clk 0:02:07.6]} 18... Rf6 {[%clk 0:02:08.6]} 19. Rd7
{[%clk 0:02:06.5]} 19... Rb7 {[%clk 0:02:07.9]} 20. Re7 {[%clk 0:02:05.3]} 20...
Rb5 {[%clk 0:02:04]} 21. R5xe6 {[%clk 0:02:00.2]} 21... Rxe6 {[%clk 0:02:03.1]}
22. Rxe6 {[%clk 0:02:01.1]} 22... Rc5 {[%clk 0:02:03]} 23. c4 {[%clk 0:02:00.1]}
23... Ra5 {[%clk 0:02:02.1]} 24. Rxc6 {[%clk 0:01:57.4]} 24... Rxa2 {[%clk
0:02:01.4]} 25. Rxc7 {[%clk 0:01:57.7]} 25... Ra1+ {[%clk 0:02:00.5]} 26. Kh2
{[%clk 0:01:57]} 26... Rb1 {[%clk 0:02:01.1]} 27. Rxa7 {[%clk 0:01:55.4]} 27...
Rxb3 {[%clk 0:02:00.9]} 28. Rc7 {[%clk 0:01:55.2]} 28... Rc3 {[%clk 0:02:00.6]}
29. f3 {[%clk 0:01:54]} 29... Kf8 {[%clk 0:01:59.4]} 30. Kg3 {[%clk 0:01:53]}
30... Ke8 {[%clk 0:01:59.5]} 31. Rxh7 {[%clk 0:01:49.9]} 31... Rxc4 {[%clk
0:01:58.8]} 32. Rxh6 {[%clk 0:01:50.1]} 32... Rc7 {[%clk 0:01:57]} 33. Rf6
{[%clk 0:01:49.7]} 33... Rg7+ {[%clk 0:01:56.1]} 34. Kf2 {[%clk 0:01:49.8]}
34... Ke7 {[%clk 0:01:55.4]} 35. Rf4 {[%clk 0:01:49.9]} 35... Rg8 {[%clk
0:01:52]} 36. g4 {[%clk 0:01:50.1]} 36... Ke6 {[%clk 0:01:51.4]} 37. Kg3 {[%clk
0:01:50]} 37... Ke5 {[%clk 0:01:50.2]} 38. Rf5+ {[%clk 0:01:49.3]} 38... Ke6
{[%clk 0:01:49.8]} 39. h4 {[%clk 0:01:49.5]} 39... Rg6 {[%clk 0:01:47.9]} 40. h5
{[%clk 0:01:49.7]} 40... Rg7 {[%clk 0:01:45.8]} 41. f4 {[%clk 0:01:48.3]} 41...
Ra7 {[%clk 0:01:45.7]} 42. Re5+ {[%clk 0:01:47.8]} 42... Kd6 {[%clk 0:01:43.4]}
43. g5 {[%clk 0:01:46.5]} 43... Ra3+ {[%clk 0:01:40.3]} 44. Kg4 {[%clk 0:01:47]}
44... Ra1 {[%clk 0:01:39.4]} 45. Re2 {[%clk 0:01:45.9]} 45... Rg1+ {[%clk
0:01:38.2]} 46. Kf5 {[%clk 0:01:46.2]} 46... Ra1 {[%clk 0:01:36.5]} 47. h6
{[%clk 0:01:46.2]} 47... Ra5+ {[%clk 0:01:35.9]} 48. Kg6 {[%clk 0:01:46.1]}
48... Ra8 {[%clk 0:01:33.8]} 49. f5 {[%clk 0:01:45.9]} 49... Rg8+ {[%clk
0:01:33.2]} 50. Kh5 {[%clk 0:01:45.9]} 50... Ra8 {[%clk 0:01:30.8]} 51. g6
{[%clk 0:01:41.3]} 51... Ra1 {[%clk 0:01:29.4]} 52. Kg5 {[%clk 0:01:41.5]} 52...
Rg1+ {[%clk 0:01:25.8]} 53. Kf6 {[%clk 0:01:41.6]} 53... Ra1 {[%clk 0:01:24.8]}
54. Rd2+ {[%clk 0:01:41.6]} 54... Kc7 {[%clk 0:01:21.7]} 55. h7 {[%clk
0:01:42.5]} 55... Ra6+ {[%clk 0:01:20.2]} 56. Kg7 {[%clk 0:01:35.9]} 56... Ra7
{[%clk 0:01:20]} 57. f6 {[%clk 0:01:34]} 57... Kc6+ {[%clk 0:01:18.9]} 58. f7
{[%clk 0:01:34.3]} 58... Kc5 {[%clk 0:01:15.1]} 59. h8=Q {[%clk 0:01:34.4]}
59... Kc6 {[%clk 0:01:12.6]} 60. Qc8+ {[%clk 0:01:34]} 60... Kb6 {[%clk
0:01:11.8]} 61. Rb2+ {[%clk 0:01:34.3]} 61... Ka5 {[%clk 0:01:10.7]} 62. Qc5+
{[%clk 0:01:34.8]} 62... Ka4 {[%clk 0:01:10]} 63. Qb4# {[%clk 0:01:35.3]} 1-0

[Event "Betsys MČR v online bleskovém šachu 2021"]
[Site "Chess.com"]
[Date "2021.04.17"]
[Round "6"]
[White "vikysachy"]
[Black "Richter_Rudolf"]
[Result "0-1"]
[WhiteElo "862"]
[BlackElo "1299"]
[TimeControl "180+1"]
[EndTime "9:56:08 PDT"]
[Termination "Uživatel Richter_Rudolf zvítězil matem"]

1. e4 {[%clk 0:03:00.9]} 1... c5 {[%clk 0:02:58.6]} 2. Nf3 {[%clk 0:02:57.7]}
2... Nc6 {[%clk 0:02:49]} 3. Bc4 {[%clk 0:02:56.1]} 3... e6 {[%clk 0:02:43.4]}
4. Nc3 {[%clk 0:02:54]} 4... Nf6 {[%clk 0:02:35.8]} 5. d3 {[%clk 0:02:49.1]}
5... a6 {[%clk 0:02:30.8]} 6. Qe2 {[%clk 0:02:47]} 6... b5 {[%clk 0:02:30]} 7.
Bb3 {[%clk 0:02:46.6]} 7... Nd4 {[%clk 0:02:26.4]} 8. Nxd4 {[%clk 0:02:38.2]}
8... cxd4 {[%clk 0:02:26.4]} 9. Nb1 {[%clk 0:02:27.6]} 9... e5 {[%clk 0:02:19]}
10. Bg5 {[%clk 0:02:17.2]} 10... h6 {[%clk 0:02:13.3]} 11. Bh4 {[%clk 0:02:17]}
11... d6 {[%clk 0:02:09]} 12. Nd2 {[%clk 0:02:14.5]} 12... Be7 {[%clk 0:02:09]}
13. O-O-O {[%clk 0:02:12.7]} 13... Nd7 {[%clk 0:02:03]} 14. a3 {[%clk
0:02:12.3]} 14... Bxh4 {[%clk 0:02:00.5]} 15. g3 {[%clk 0:02:10.1]} 15... Bg5
{[%clk 0:01:56.4]} 16. Rhf1 {[%clk 0:02:04.1]} 16... Nc5 {[%clk 0:01:56.1]} 17.
f4 {[%clk 0:02:00]} 17... Bf6 {[%clk 0:01:44.6]} 18. fxe5 {[%clk 0:01:49.1]}
18... dxe5 {[%clk 0:01:43.4]} 19. Qe1 {[%clk 0:01:44.1]} 19... Nxb3+ {[%clk
0:01:38.8]} 20. Nxb3 {[%clk 0:01:41.6]} 20... Be6 {[%clk 0:01:38.9]} 21. Nc5
{[%clk 0:01:24.7]} 21... Qc7 {[%clk 0:01:33.5]} 22. Nxe6 {[%clk 0:01:17.1]}
22... fxe6 {[%clk 0:01:31.7]} 23. Qb4 {[%clk 0:01:03.1]} 23... Be7 {[%clk
0:01:26.1]} 24. Qb3 {[%clk 0:01:01.5]} 24... Rc8 {[%clk 0:01:24]} 25. c3 {[%clk
0:00:49.5]} 25... dxc3 {[%clk 0:01:19.7]} 26. bxc3 {[%clk 0:00:43.9]} 26...
Qxc3+ {[%clk 0:01:12.9]} 27. Kb1 {[%clk 0:00:38]} 27... Qxb3+ {[%clk 0:01:11.2]}
28. Ka1 {[%clk 0:00:35.7]} 28... Bxa3 {[%clk 0:01:09.9]} 29. d4 {[%clk
0:00:19.6]} 29... Qb2# {[%clk 0:01:08.7]} 0-1

[Event "Betsys MČR v online bleskovém šachu 2021"]
[Site "Chess.com"]
[Date "2021.04.17"]
[Round "6"]
[White "Jakuboss22005"]
[Black "Smetanka674"]
[Result "1-0"]
[WhiteElo "2067"]
[BlackElo "1758"]
[TimeControl "180+1"]
[EndTime "9:56:16 PDT"]
[Termination "Uživatel Jakuboss22005 zvítězil po vzdání soupeře"]

1. b3 {[%clk 0:03:00.9]} 1... Nf6 {[%clk 0:02:57.7]} 2. Bb2 {[%clk 0:03:00.2]}
2... e6 {[%clk 0:02:57.9]} 3. Nf3 {[%clk 0:02:59.5]} 3... d5 {[%clk 0:02:58]} 4.
e3 {[%clk 0:02:59.6]} 4... c5 {[%clk 0:02:58.1]} 5. c4 {[%clk 0:02:59.6]} 5...
Nc6 {[%clk 0:02:56.6]} 6. cxd5 {[%clk 0:02:58.1]} 6... exd5 {[%clk 0:02:56.1]}
7. Bb5 {[%clk 0:02:58.6]} 7... Be7 {[%clk 0:02:55.3]} 8. O-O {[%clk 0:02:56]}
8... O-O {[%clk 0:02:55.2]} 9. h3 {[%clk 0:02:55.7]} 9... Bd7 {[%clk 0:02:55.3]}
10. d4 {[%clk 0:02:47.3]} 10... a6 {[%clk 0:02:53.2]} 11. Bxc6 {[%clk
0:02:46.8]} 11... Bxc6 {[%clk 0:02:52]} 12. Nbd2 {[%clk 0:02:44.3]} 12... b6
{[%clk 0:02:33.4]} 13. Ne5 {[%clk 0:02:39.6]} 13... Bb7 {[%clk 0:02:32.7]} 14.
Ndf3 {[%clk 0:02:39]} 14... Nd7 {[%clk 0:02:29.6]} 15. Rc1 {[%clk 0:02:28.4]}
15... Nxe5 {[%clk 0:02:27.5]} 16. Nxe5 {[%clk 0:02:29.3]} 16... f6 {[%clk
0:02:27.6]} 17. Nf3 {[%clk 0:02:24.5]} 17... Rc8 {[%clk 0:02:26.7]} 18. dxc5
{[%clk 0:02:20.4]} 18... bxc5 {[%clk 0:02:25.9]} 19. Qd2 {[%clk 0:02:18]} 19...
Qb6 {[%clk 0:02:24.6]} 20. Ba3 {[%clk 0:02:11.5]} 20... Rfd8 {[%clk 0:02:17.3]}
21. Nh4 {[%clk 0:02:04.6]} 21... Qe6 {[%clk 0:02:11]} 22. Rfe1 {[%clk
0:01:55.6]} 22... Qe4 {[%clk 0:02:09.2]} 23. Nf3 {[%clk 0:01:50]} 23... g5
{[%clk 0:02:03.9]} 24. Qc2 {[%clk 0:01:46.6]} 24... Qxc2 {[%clk 0:01:58]} 25.
Rxc2 {[%clk 0:01:47.5]} 25... Bd6 {[%clk 0:01:54.8]} 26. Rec1 {[%clk 0:01:46.2]}
26... d4 {[%clk 0:01:47.1]} 27. exd4 {[%clk 0:01:40.8]} 27... Bxf3 {[%clk
0:01:46]} 28. gxf3 {[%clk 0:01:41.7]} 28... Bf4 {[%clk 0:01:40.6]} 29. Rd1
{[%clk 0:01:02.9]} 29... cxd4 {[%clk 0:01:37.1]} 30. Rxc8 {[%clk 0:01:01.5]}
30... Rxc8 {[%clk 0:01:35.3]} 31. Rxd4 {[%clk 0:01:01.3]} 31... Rc2 {[%clk
0:01:35]} 32. Be7 {[%clk 0:00:38.4]} 32... Be5 {[%clk 0:01:31.9]} 33. Ra4 {[%clk
0:00:35.6]} 33... Kf7 {[%clk 0:01:23.5]} 34. Bb4 {[%clk 0:00:32.5]} 34... Rc1+
{[%clk 0:01:18.3]} 35. Kg2 {[%clk 0:00:32.2]} 35... Rc3 {[%clk 0:01:14.1]} 36.
Bxc3 {[%clk 0:00:31.2]} 36... Bxc3 {[%clk 0:01:12.3]} 37. Rxa6 {[%clk 0:00:31]}
37... Kg6 {[%clk 0:01:10.2]} 38. a4 {[%clk 0:00:30.7]} 1-0

[Event "Betsys MČR v online bleskovém šachu 2021"]
[Site "Chess.com"]
[Date "2021.04.17"]
[Round "6"]
[White "Nevimjakhrat"]
[Black "WhiteLittleHorse"]
[Result "1-0"]
[WhiteElo "1479"]
[BlackElo "967"]
[TimeControl "180+1"]
[EndTime "9:56:16 PDT"]
[Termination "Uživatel Nevimjakhrat zvítězil matem"]

1. c4 {[%clk 0:02:58.2]} 1... e5 {[%clk 0:02:58.2]} 2. Nc3 {[%clk 0:02:56.5]}
2... c6 {[%clk 0:02:56.8]} 3. e4 {[%clk 0:02:56.5]} 3... Nf6 {[%clk 0:02:54.6]}
4. g3 {[%clk 0:02:55.3]} 4... Bb4 {[%clk 0:02:51.5]} 5. Bg2 {[%clk 0:02:54]}
5... Bxc3 {[%clk 0:02:50.5]} 6. bxc3 {[%clk 0:02:54.9]} 6... d6 {[%clk
0:02:48.2]} 7. d4 {[%clk 0:02:54.6]} 7... exd4 {[%clk 0:02:46.8]} 8. cxd4 {[%clk
0:02:55.5]} 8... Be6 {[%clk 0:02:40.4]} 9. d5 {[%clk 0:02:52.1]} 9... cxd5
{[%clk 0:02:39]} 10. cxd5 {[%clk 0:02:53]} 10... Bg4 {[%clk 0:02:35.3]} 11. Qa4+
{[%clk 0:02:38.2]} 11... Bd7 {[%clk 0:02:31.8]} 12. Qd1 {[%clk 0:02:37.2]} 12...
Bg4 {[%clk 0:02:29.8]} 13. f3 {[%clk 0:02:37.5]} 13... Bd7 {[%clk 0:02:27.8]}
14. Ne2 {[%clk 0:02:36.5]} 14... b6 {[%clk 0:02:27.1]} 15. O-O {[%clk
0:02:32.1]} 15... O-O {[%clk 0:02:27.2]} 16. f4 {[%clk 0:02:31.9]} 16... Bg4
{[%clk 0:02:24.6]} 17. f5 {[%clk 0:02:26.6]} 17... Bxe2 {[%clk 0:02:22]} 18.
Qxe2 {[%clk 0:02:26.9]} 18... Nbd7 {[%clk 0:02:19.6]} 19. Bf4 {[%clk 0:02:25.2]}
19... Nc5 {[%clk 0:02:16.7]} 20. e5 {[%clk 0:02:21]} 20... dxe5 {[%clk
0:02:15.8]} 21. Bxe5 {[%clk 0:02:21.9]} 21... Nxd5 {[%clk 0:02:13.7]} 22. Qg4
{[%clk 0:02:09]} 22... f6 {[%clk 0:02:05]} 23. Bb2 {[%clk 0:02:05.6]} 23... Nc7
{[%clk 0:01:50.8]} 24. Bxa8 {[%clk 0:02:04.7]} 24... Qxa8 {[%clk 0:01:47.7]} 25.
Ba3 {[%clk 0:02:02.3]} 25... Re8 {[%clk 0:01:34.2]} 26. Bxc5 {[%clk 0:01:53]}
26... bxc5 {[%clk 0:01:33]} 27. Qc4+ {[%clk 0:01:53.6]} 27... Kh8 {[%clk
0:01:23.6]} 28. Qxc5 {[%clk 0:01:54.5]} 28... Re2 {[%clk 0:01:16.4]} 29. Rf2
{[%clk 0:01:42.8]} 29... Rxf2 {[%clk 0:01:13.1]} 30. Kxf2 {[%clk 0:01:43.7]}
30... Na6 {[%clk 0:01:06.6]} 31. Qc4 {[%clk 0:01:38.1]} 31... Qb7 {[%clk
0:01:01.7]} 32. Re1 {[%clk 0:01:28]} 32... Qb2+ {[%clk 0:00:57.2]} 33. Re2
{[%clk 0:01:22.4]} 33... Qb6+ {[%clk 0:00:54]} 34. Kf1 {[%clk 0:01:17.5]} 34...
Qb1+ {[%clk 0:00:50.8]} 35. Re1 {[%clk 0:01:17.9]} 35... Qxf5+ {[%clk
0:00:48.4]} 36. Kg1 {[%clk 0:01:05.2]} 36... Qc5+ {[%clk 0:00:38.1]} 37. Qxc5
{[%clk 0:01:03.1]} 37... Nxc5 {[%clk 0:00:39]} 38. Re8# {[%clk 0:01:02.1]} 1-0